[Event "Early-Titled-Tuesday-Blitz-April-02-2024"]
[Site "Chess.com"]
[Date "2024.04.02"]
[Round "2"]
[White "YouJustFoundYourGodfather"]
[Black "maciek_92"]
[Result "0-1"]
[WhiteElo "2588"]
[BlackElo "2850"]
[TimeControl "180+1"]
[EndTime "8:16:02 PDT"]
[Termination "maciek_92 won by resignation"]

1. e4 {[%clk 0:02:57.1]} 1... c5 {[%clk 0:03:00.3]} 2. Nf3 {[%clk 0:02:56]} 2...
e6 {[%clk 0:03:00.9]} 3. g3 {[%clk 0:02:50.9]} 3... Nc6 {[%clk 0:03:00.2]} 4.
Qe2 {[%clk 0:02:48.7]} 4... Nf6 {[%clk 0:03:00.9]} 5. e5 {[%clk 0:02:48.1]} 5...
Ng4 {[%clk 0:02:59.4]} 6. h3 {[%clk 0:02:45.8]} 6... Nh6 {[%clk 0:03:00.1]} 7.
Bg2 {[%clk 0:02:45.1]} 7... Nf5 {[%clk 0:03:00.7]} 8. c3 {[%clk 0:02:44.9]} 8...
d6 {[%clk 0:02:56.3]} 9. Na3 {[%clk 0:02:35.1]} 9... dxe5 {[%clk 0:02:53.3]} 10.
Nxe5 {[%clk 0:02:35.6]} 10... Nxe5 {[%clk 0:02:54]} 11. Qxe5 {[%clk 0:02:36]}
11... Bd6 {[%clk 0:02:54.5]} 12. Qe2 {[%clk 0:02:34.6]} 12... O-O {[%clk
0:02:55.1]} 13. Nc4 {[%clk 0:02:29.9]} 13... Bc7 {[%clk 0:02:55]} 14. a4 {[%clk
0:02:25.9]} 14... Rb8 {[%clk 0:02:43.6]} 15. d3 {[%clk 0:02:18.6]} 15... b6
{[%clk 0:02:42.6]} 16. h4 {[%clk 0:02:15.7]} 16... e5 {[%clk 0:02:35.6]} 17. Bg5
{[%clk 0:02:07.7]} 17... f6 {[%clk 0:02:35.8]} 18. Bd2 {[%clk 0:02:08.2]} 18...
Be6 {[%clk 0:02:33.3]} 19. h5 {[%clk 0:01:55.1]} 19... Qd7 {[%clk 0:02:33]} 20.
Be4 {[%clk 0:01:39.6]} 20... Rbd8 {[%clk 0:02:32.9]} 21. a5 {[%clk 0:01:19.6]}
21... b5 {[%clk 0:02:31.9]} 22. Ne3 {[%clk 0:01:19.1]} 22... Nxe3 {[%clk
0:02:26.8]} 23. Bxe3 {[%clk 0:01:20]} 23... f5 {[%clk 0:02:27.5]} 24. Bg2 {[%clk
0:01:17.6]} 24... Bd6 {[%clk 0:02:28]} 25. h6 {[%clk 0:01:11.9]} 25... g6 {[%clk
0:02:26.9]} 26. Qf3 {[%clk 0:01:03]} 26... Be7 {[%clk 0:02:03.9]} 27. Qc6 {[%clk
0:00:56.9]} 27... b4 {[%clk 0:01:53.3]} 28. cxb4 {[%clk 0:00:44.5]} 28... c4
{[%clk 0:01:51.3]} 29. Qxd7 {[%clk 0:00:32.6]} 29... Bxb4+ {[%clk 0:01:51.2]}
30. Kf1 {[%clk 0:00:28.7]} 30... Rxd7 {[%clk 0:01:51.2]} 31. dxc4 {[%clk
0:00:19.1]} 31... Bxc4+ {[%clk 0:01:52.1]} 32. Kg1 {[%clk 0:00:19.3]} 32... f4
{[%clk 0:01:52.6]} 33. gxf4 {[%clk 0:00:15.2]} 33... exf4 {[%clk 0:01:53.5]} 34.
Rh4 {[%clk 0:00:14.9]} 34... fxe3 {[%clk 0:01:48.7]} 35. Rxc4 {[%clk 0:00:15.8]}
35... e2 {[%clk 0:01:49.4]} 0-1

[Event "Early-Titled-Tuesday-Blitz-April-02-2024"]
[Site "Chess.com"]
[Date "2024.04.02"]
[Round "2"]
[White "MKlose11"]
[Black "Fengwi"]
[Result "1-0"]
[WhiteElo "2610"]
[BlackElo "2350"]
[TimeControl "180+1"]
[EndTime "8:16:02 PDT"]
[Termination "MKlose11 won by checkmate"]

1. e4 {[%clk 0:02:55.3]} 1... c5 {[%clk 0:00:50.2]} 2. Nc3 {[%clk 0:02:52.9]}
2... Nc6 {[%clk 0:00:48.2]} 3. g3 {[%clk 0:02:53.2]} 3... g6 {[%clk 0:00:47.8]}
4. Bg2 {[%clk 0:02:54.1]} 4... Bg7 {[%clk 0:00:48.3]} 5. d3 {[%clk 0:02:55]}
5... Rb8 {[%clk 0:00:47.4]} 6. Be3 {[%clk 0:02:55.1]} 6... d6 {[%clk 0:00:47.7]}
7. Qd2 {[%clk 0:02:55.3]} 7... b5 {[%clk 0:00:48]} 8. Nge2 {[%clk 0:02:55.5]}
8... b4 {[%clk 0:00:48.5]} 9. Nd1 {[%clk 0:02:55.9]} 9... h5 {[%clk 0:00:47.7]}
10. h3 {[%clk 0:02:54.3]} 10... e6 {[%clk 0:00:48.3]} 11. O-O {[%clk 0:02:54.6]}
11... Nge7 {[%clk 0:00:46.9]} 12. f4 {[%clk 0:02:55.1]} 12... O-O {[%clk
0:00:45.6]} 13. f5 {[%clk 0:02:54.1]} 13... exf5 {[%clk 0:00:44.6]} 14. exf5
{[%clk 0:02:54.3]} 14... Bxf5 {[%clk 0:00:43.8]} 15. Rxf5 {[%clk 0:02:53.5]}
15... gxf5 {[%clk 0:00:44.7]} 16. Bh6 {[%clk 0:02:53.5]} 16... Ne5 {[%clk
0:00:39.4]} 17. Bxg7 {[%clk 0:02:53.5]} 17... Kxg7 {[%clk 0:00:40.3]} 18. Nf4
{[%clk 0:02:53.8]} 18... Rh8 {[%clk 0:00:36.1]} 19. Ne3 {[%clk 0:02:53.7]} 19...
Qd7 {[%clk 0:00:34.7]} 20. Rf1 {[%clk 0:02:53.6]} 20... N7g6 {[%clk 0:00:34.4]}
21. Nfd5 {[%clk 0:02:49.2]} 21... h4 {[%clk 0:00:26.7]} 22. Nxf5+ {[%clk
0:02:48.8]} 22... Kf8 {[%clk 0:00:27.2]} 23. g4 {[%clk 0:02:48.2]} 23... Re8
{[%clk 0:00:20.6]} 24. Nf6 {[%clk 0:02:31.7]} 24... Qd8 {[%clk 0:00:20.3]} 25.
Nxe8 {[%clk 0:02:31.7]} 25... Kxe8 {[%clk 0:00:20.5]} 26. c3 {[%clk 0:02:29.9]}
26... bxc3 {[%clk 0:00:19.9]} 27. bxc3 {[%clk 0:02:29.5]} 27... Qb6 {[%clk
0:00:19.5]} 28. d4 {[%clk 0:02:28.1]} 28... cxd4 {[%clk 0:00:19]} 29. cxd4
{[%clk 0:02:28.3]} 29... Kd8 {[%clk 0:00:16.5]} 30. Kh1 {[%clk 0:02:27.2]} 30...
Nd7 {[%clk 0:00:15.2]} 31. Qg5+ {[%clk 0:02:22.8]} 31... Kc7 {[%clk 0:00:15.1]}
32. Rc1+ {[%clk 0:02:22]} 32... Kb8 {[%clk 0:00:15]} 33. Qd2 {[%clk 0:02:18.9]}
33... Rc8 {[%clk 0:00:13.4]} 34. Rf1 {[%clk 0:02:09.2]} 34... Rc4 {[%clk
0:00:08.9]} 35. Qd3 {[%clk 0:02:08.8]} 35... Rb4 {[%clk 0:00:08.4]} 36. a3
{[%clk 0:02:06.5]} 36... Rb2 {[%clk 0:00:07.8]} 37. Qc4 {[%clk 0:02:03.7]} 37...
Qc7 {[%clk 0:00:02.4]} 38. Qd5 {[%clk 0:02:02]} 38... Nb6 {[%clk 0:00:01.6]} 39.
Qf3 {[%clk 0:01:59.2]} 39... Qc2 {[%clk 0:00:01.6]} 40. Qb7# {[%clk 0:01:55.4]}
1-0

[Event "Early-Titled-Tuesday-Blitz-April-02-2024"]
[Site "Chess.com"]
[Date "2024.04.02"]
[Round "2"]
[White "Sl4werThanYou"]
[Black "esrosenberg"]
[Result "1-0"]
[WhiteElo "2720"]
[BlackElo "2514"]
[TimeControl "180+1"]
[EndTime "8:16:05 PDT"]
[Termination "Sl4werThanYou won by checkmate"]

1. e4 {[%clk 0:03:00.9]} 1... c5 {[%clk 0:02:58.7]} 2. Nf3 {[%clk 0:03:00.5]}
2... e6 {[%clk 0:02:59.3]} 3. d4 {[%clk 0:02:57.8]} 3... cxd4 {[%clk 0:02:59.8]}
4. Nxd4 {[%clk 0:02:58.7]} 4... Nf6 {[%clk 0:02:59.9]} 5. Nc3 {[%clk 0:02:58.1]}
5... Nc6 {[%clk 0:03:00.5]} 6. Bf4 {[%clk 0:02:46.8]} 6... Bb4 {[%clk
0:02:47.6]} 7. Nb5 {[%clk 0:02:46.5]} 7... Nxe4 {[%clk 0:02:23]} 8. Qf3 {[%clk
0:02:28.7]} 8... d5 {[%clk 0:02:20]} 9. Nc7+ {[%clk 0:02:22.3]} 9... Kf8 {[%clk
0:02:19.7]} 10. Nxa8 {[%clk 0:02:22.5]} 10... e5 {[%clk 0:02:20.4]} 11. Bd2
{[%clk 0:02:19.5]} 11... Nd4 {[%clk 0:02:19.2]} 12. Qd1 {[%clk 0:02:18.9]} 12...
Qh4 {[%clk 0:02:18.1]} 13. g3 {[%clk 0:01:56.2]} 13... Qf6 {[%clk 0:02:17.4]}
14. Nxe4 {[%clk 0:01:45.6]} 14... Nf3+ {[%clk 0:02:17.2]} 15. Qxf3 {[%clk
0:01:44.1]} 15... Qxf3 {[%clk 0:02:17.8]} 16. Bxb4+ {[%clk 0:01:41.6]} 16... Kg8
{[%clk 0:02:18.4]} 17. Nd6 {[%clk 0:01:40.3]} 17... Qxh1 {[%clk 0:02:16.2]} 18.
O-O-O {[%clk 0:01:40]} 18... Be6 {[%clk 0:02:15.3]} 19. Nc7 {[%clk 0:01:38.1]}
19... Qxh2 {[%clk 0:02:00.8]} 20. Nxd5 {[%clk 0:01:37.1]} 20... Qxf2 {[%clk
0:00:41]} 21. Ne7+ {[%clk 0:01:11.7]} 21... Kf8 {[%clk 0:00:40.2]} 22. Ndf5
{[%clk 0:01:11.2]} 22... f6 {[%clk 0:00:21.9]} 23. Ng6+ {[%clk 0:01:05.9]} 23...
Kf7 {[%clk 0:00:20.4]} 24. Nxh8+ {[%clk 0:01:06.3]} 24... Ke8 {[%clk 0:00:19]}
25. Nxg7# {[%clk 0:01:06]} 1-0

[Event "Early-Titled-Tuesday-Blitz-April-02-2024"]
[Site "Chess.com"]
[Date "2024.04.02"]
[Round "2"]
[White "bilelou"]
[Black "visa"]
[Result "1-0"]
[WhiteElo "2654"]
[BlackElo "2375"]
[TimeControl "180+1"]
[EndTime "8:16:07 PDT"]
[Termination "bilelou won by checkmate"]

1. e4 {[%clk 0:03:00.9]} 1... d6 {[%clk 0:02:59.7]} 2. d4 {[%clk 0:03:00.2]}
2... Nf6 {[%clk 0:03:00.3]} 3. Nc3 {[%clk 0:02:59.6]} 3... e5 {[%clk 0:03:00.8]}
4. Nf3 {[%clk 0:02:58.3]} 4... exd4 {[%clk 0:03:00.5]} 5. Nxd4 {[%clk
0:02:57.6]} 5... Be7 {[%clk 0:03:00.8]} 6. Bd3 {[%clk 0:02:52.2]} 6... O-O
{[%clk 0:03:00.1]} 7. O-O {[%clk 0:02:52.7]} 7... c6 {[%clk 0:02:59.4]} 8. Re1
{[%clk 0:02:51.3]} 8... b5 {[%clk 0:02:59.4]} 9. a3 {[%clk 0:02:49.6]} 9... a6
{[%clk 0:02:59.2]} 10. h3 {[%clk 0:02:47.3]} 10... Qc7 {[%clk 0:02:58]} 11. Bf4
{[%clk 0:02:47.6]} 11... Re8 {[%clk 0:02:50.8]} 12. Qf3 {[%clk 0:02:47.1]} 12...
Bb7 {[%clk 0:02:49.2]} 13. Nf5 {[%clk 0:02:44.5]} 13... Bf8 {[%clk 0:02:46.5]}
14. Rad1 {[%clk 0:02:38.4]} 14... Nbd7 {[%clk 0:02:46.3]} 15. Be2 {[%clk
0:02:36.7]} 15... Ne5 {[%clk 0:02:43.8]} 16. Qg3 {[%clk 0:02:36.6]} 16... Rad8
{[%clk 0:02:29.6]} 17. Bg5 {[%clk 0:02:31]} 17... Re6 {[%clk 0:01:48.6]} 18. Nd4
{[%clk 0:02:10.8]} 18... Rde8 {[%clk 0:01:25.2]} 19. Nxe6 {[%clk 0:02:09.5]}
19... Rxe6 {[%clk 0:01:26]} 20. f4 {[%clk 0:02:08.1]} 20... Ned7 {[%clk
0:01:21.6]} 21. Bf3 {[%clk 0:01:58.6]} 21... c5 {[%clk 0:01:09.5]} 22. Nd5
{[%clk 0:01:51.1]} 22... Bxd5 {[%clk 0:00:46.3]} 23. exd5 {[%clk 0:01:52]} 23...
Rxe1+ {[%clk 0:00:44.2]} 24. Rxe1 {[%clk 0:01:52.9]} 24... c4 {[%clk 0:00:38.4]}
25. Kh1 {[%clk 0:01:48.4]} 25... Qc5 {[%clk 0:00:36.5]} 26. f5 {[%clk 0:01:44]}
26... Nxd5 {[%clk 0:00:28.7]} 27. Re8 {[%clk 0:01:41.4]} 27... f6 {[%clk
0:00:15.3]} 28. Bh6 {[%clk 0:01:31.3]} 28... Kf7 {[%clk 0:00:11.5]} 29. Bh5+
{[%clk 0:01:26.8]} 29... g6 {[%clk 0:00:09]} 30. Bxg6+ {[%clk 0:01:27.3]} 30...
hxg6 {[%clk 0:00:07.3]} 31. Qxg6# {[%clk 0:01:28.2]} 1-0

[Event "Early-Titled-Tuesday-Blitz-April-02-2024"]
[Site "Chess.com"]
[Date "2024.04.02"]
[Round "2"]
[White "Knightmare1014"]
[Black "Tugrik1969"]
[Result "0-1"]
[WhiteElo "2341"]
[BlackElo "2553"]
[TimeControl "180+1"]
[EndTime "8:16:08 PDT"]
[Termination "Tugrik1969 won by resignation"]

1. e4 {[%clk 0:03:00.9]} 1... c5 {[%clk 0:02:59.7]} 2. Nf3 {[%clk 0:03:01]} 2...
d6 {[%clk 0:03:00.2]} 3. Bb5+ {[%clk 0:03:01.1]} 3... Nd7 {[%clk 0:02:58.9]} 4.
c3 {[%clk 0:03:00.9]} 4... Nf6 {[%clk 0:02:55.4]} 5. Qe2 {[%clk 0:03:00.6]} 5...
a6 {[%clk 0:02:52.3]} 6. Ba4 {[%clk 0:03:00.7]} 6... e6 {[%clk 0:02:46]} 7. O-O
{[%clk 0:02:59.1]} 7... Be7 {[%clk 0:02:46]} 8. d4 {[%clk 0:02:58.4]} 8... O-O
{[%clk 0:02:41.4]} 9. Bc2 {[%clk 0:02:55.4]} 9... e5 {[%clk 0:02:31]} 10. Rd1
{[%clk 0:02:54.7]} 10... Qc7 {[%clk 0:02:28]} 11. Bd3 {[%clk 0:02:50.9]} 11...
Re8 {[%clk 0:02:20.1]} 12. Nbd2 {[%clk 0:02:50]} 12... Bf8 {[%clk 0:02:17.5]}
13. Nf1 {[%clk 0:02:48.5]} 13... exd4 {[%clk 0:02:09.5]} 14. cxd4 {[%clk
0:02:47.8]} 14... cxd4 {[%clk 0:02:08.7]} 15. Nxd4 {[%clk 0:02:47]} 15... d5
{[%clk 0:02:06.9]} 16. f3 {[%clk 0:02:31]} 16... dxe4 {[%clk 0:02:04.1]} 17.
fxe4 {[%clk 0:02:31.2]} 17... Bc5 {[%clk 0:01:56.7]} 18. Be3 {[%clk 0:02:26.7]}
18... Qb6 {[%clk 0:01:50.4]} 19. Nf5 {[%clk 0:02:17.3]} 19... g6 {[%clk
0:01:36.9]} 20. N5g3 {[%clk 0:02:12.7]} 20... Ne5 {[%clk 0:01:27.5]} 21. Kh1
{[%clk 0:02:09.3]} 21... Bg4 {[%clk 0:01:23.5]} 22. Qf2 {[%clk 0:01:50.9]} 22...
Bxd1 {[%clk 0:01:23.1]} 23. Bxc5 {[%clk 0:01:49]} 23... Nxd3 {[%clk 0:01:19.5]}
24. Bxb6 {[%clk 0:01:48.8]} 24... Nxf2+ {[%clk 0:01:20]} 25. Bxf2 {[%clk
0:01:48.7]} 25... Rad8 {[%clk 0:01:17.7]} 26. Ne3 {[%clk 0:01:39.4]} 26... Ba4
{[%clk 0:01:14.8]} 27. b3 {[%clk 0:01:36.5]} 27... Bc6 {[%clk 0:01:14.7]} 28.
Nc4 {[%clk 0:01:36]} 28... Nxe4 {[%clk 0:01:13.6]} 29. Nxe4 {[%clk 0:01:33.1]}
29... Rxe4 {[%clk 0:01:13.3]} 30. Bb6 {[%clk 0:01:31.3]} 30... Rde8 {[%clk
0:01:10.5]} 31. h3 {[%clk 0:01:28.4]} 31... Re1+ {[%clk 0:01:10.1]} 32. Rxe1
{[%clk 0:01:27.4]} 32... Rxe1+ {[%clk 0:01:11]} 33. Kh2 {[%clk 0:01:28.3]} 33...
Re2 {[%clk 0:01:11.3]} 34. Ne3 {[%clk 0:01:26.9]} 34... Rxa2 {[%clk 0:01:11.2]}
35. Kg3 {[%clk 0:01:24.5]} 35... Rb2 {[%clk 0:01:06.5]} 36. Ng4 {[%clk
0:01:18.3]} 36... Rxb3+ {[%clk 0:01:06.7]} 37. Kf4 {[%clk 0:01:16.8]} 37... Rxb6
{[%clk 0:01:07.2]} 38. Ke5 {[%clk 0:01:15.1]} 38... a5 {[%clk 0:01:07.1]} 39.
Nf6+ {[%clk 0:01:15.1]} 39... Kh8 {[%clk 0:01:06.8]} 40. Ng4 {[%clk 0:01:13.7]}
40... a4 {[%clk 0:01:06.6]} 41. Kd4 {[%clk 0:01:13.8]} 41... a3 {[%clk 0:01:06]}
42. Kc5 {[%clk 0:01:14.1]} 42... Rb5+ {[%clk 0:01:05.7]} 43. Kc4 {[%clk
0:01:14]} 43... a2 {[%clk 0:01:06.3]} 0-1

[Event "Early-Titled-Tuesday-Blitz-April-02-2024"]
[Site "Chess.com"]
[Date "2024.04.02"]
[Round "2"]
[White "Azerichess"]
[Black "Mikasinski"]
[Result "1-0"]
[WhiteElo "3030"]
[BlackElo "2644"]
[TimeControl "180+1"]
[EndTime "8:16:09 PDT"]
[Termination "Azerichess won by resignation"]

1. d4 {[%clk 0:03:00.9]} 1... Nf6 {[%clk 0:02:59.7]} 2. Nf3 {[%clk 0:03:00]}
2... e6 {[%clk 0:02:59.8]} 3. c4 {[%clk 0:03:00.3]} 3... d5 {[%clk 0:02:59.7]}
4. g3 {[%clk 0:02:58.4]} 4... Be7 {[%clk 0:02:59.7]} 5. Bg2 {[%clk 0:02:58.9]}
5... O-O {[%clk 0:02:59.9]} 6. O-O {[%clk 0:02:59.6]} 6... dxc4 {[%clk
0:02:51.5]} 7. Qa4 {[%clk 0:02:56]} 7... Bd7 {[%clk 0:02:42.5]} 8. Qxc4 {[%clk
0:02:55.5]} 8... Bc6 {[%clk 0:02:43]} 9. Nc3 {[%clk 0:02:33.1]} 9... Nbd7 {[%clk
0:02:42.5]} 10. Qd3 {[%clk 0:02:20.5]} 10... a6 {[%clk 0:02:37.9]} 11. Rd1
{[%clk 0:02:15.3]} 11... b5 {[%clk 0:02:36.2]} 12. a3 {[%clk 0:01:57.6]} 12...
Rb8 {[%clk 0:02:32.2]} 13. e4 {[%clk 0:01:53.9]} 13... a5 {[%clk 0:02:23.9]} 14.
d5 {[%clk 0:01:47]} 14... Nc5 {[%clk 0:02:18]} 15. Qc2 {[%clk 0:01:27.9]} 15...
exd5 {[%clk 0:02:15.7]} 16. exd5 {[%clk 0:01:28.8]} 16... Ba8 {[%clk 0:02:07.4]}
17. Nd4 {[%clk 0:01:16.7]} 17... b4 {[%clk 0:02:03.8]} 18. axb4 {[%clk
0:01:17.6]} 18... axb4 {[%clk 0:02:03.9]} 19. Nc6 {[%clk 0:01:16.7]} 19... Bxc6
{[%clk 0:01:59.5]} 20. dxc6 {[%clk 0:01:17.6]} 20... Qc8 {[%clk 0:01:55.4]} 21.
Nd5 {[%clk 0:01:15.8]} 21... Nxd5 {[%clk 0:01:51.2]} 22. Bxd5 {[%clk 0:01:16.7]}
22... b3 {[%clk 0:01:47.3]} 23. Qc4 {[%clk 0:01:15.4]} 23... Qf5 {[%clk
0:01:34.3]} 24. Bf4 {[%clk 0:01:14.1]} 24... Ne6 {[%clk 0:01:32.8]} 25. Bxe6
{[%clk 0:01:10.5]} 25... fxe6 {[%clk 0:01:33.7]} 26. Re1 {[%clk 0:00:54.5]}
26... Kh8 {[%clk 0:01:25.5]} 27. Qxe6 {[%clk 0:00:53.7]} 27... Qxe6 {[%clk
0:01:22.9]} 28. Rxe6 {[%clk 0:00:54.6]} 28... Bf6 {[%clk 0:01:23.8]} 29. Bxc7
{[%clk 0:00:50.7]} 29... Bxb2 {[%clk 0:01:09]} 30. Rb1 {[%clk 0:00:47.6]} 30...
Rbc8 {[%clk 0:01:05.5]} 31. Bd6 {[%clk 0:00:47.6]} 31... Rf6 {[%clk 0:01:06]}
32. Rxf6 {[%clk 0:00:46.3]} 32... Bxf6 {[%clk 0:01:05]} 33. Rxb3 {[%clk
0:00:47.2]} 33... h5 {[%clk 0:01:01.7]} 34. c7 {[%clk 0:00:47.1]} 1-0

[Event "Early-Titled-Tuesday-Blitz-April-02-2024"]
[Site "Chess.com"]
[Date "2024.04.02"]
[Round "2"]
[White "Mariia89"]
[Black "djano"]
[Result "0-1"]
[WhiteElo "2279"]
[BlackElo "2671"]
[TimeControl "180+1"]
[EndTime "8:16:11 PDT"]
[Termination "djano won by resignation"]

1. d4 {[%clk 0:02:59.6]} 1... Nf6 {[%clk 0:02:59.9]} 2. Nf3 {[%clk 0:03:00.2]}
2... g6 {[%clk 0:03:00.5]} 3. c4 {[%clk 0:03:00.2]} 3... Bg7 {[%clk 0:03:00.9]}
4. Nc3 {[%clk 0:03:00.5]} 4... O-O {[%clk 0:03:01.5]} 5. e4 {[%clk 0:02:58.6]}
5... d6 {[%clk 0:03:01.8]} 6. Be2 {[%clk 0:02:59.3]} 6... c5 {[%clk 0:03:01.5]}
7. O-O {[%clk 0:02:59.6]} 7... cxd4 {[%clk 0:03:01.6]} 8. Nxd4 {[%clk
0:03:00.3]} 8... Nc6 {[%clk 0:03:02.2]} 9. f3 {[%clk 0:02:58.8]} 9... Nxd4
{[%clk 0:03:00.7]} 10. Qxd4 {[%clk 0:02:57.8]} 10... Be6 {[%clk 0:03:01]} 11.
Qd3 {[%clk 0:02:50.5]} 11... Rc8 {[%clk 0:02:58.6]} 12. b3 {[%clk 0:02:50.8]}
12... a6 {[%clk 0:02:59.2]} 13. Be3 {[%clk 0:02:51.1]} 13... b5 {[%clk
0:02:56.5]} 14. cxb5 {[%clk 0:02:44]} 14... Ng4 {[%clk 0:02:41.2]} 15. Bd4
{[%clk 0:02:40.7]} 15... Ne5 {[%clk 0:02:37.2]} 16. Qd2 {[%clk 0:02:36.1]} 16...
axb5 {[%clk 0:02:35.4]} 17. Bxb5 {[%clk 0:02:29.8]} 17... Qa5 {[%clk 0:02:32.8]}
18. Ba4 {[%clk 0:02:06.7]} 18... Nc4 {[%clk 0:01:50.9]} 19. bxc4 {[%clk
0:02:00.4]} 19... Bxd4+ {[%clk 0:01:49.5]} 20. Qxd4 {[%clk 0:02:00.2]} 20...
Rxc4 {[%clk 0:01:50.1]} 21. Qf2 {[%clk 0:01:38.6]} 21... Rxc3 {[%clk 0:01:44.2]}
22. Bd1 {[%clk 0:01:25.5]} 22... Rfc8 {[%clk 0:01:37.1]} 23. h4 {[%clk
0:01:16.5]} 23... h5 {[%clk 0:01:36.7]} 24. Qd2 {[%clk 0:01:05.6]} 24... Qc5+
{[%clk 0:01:33.4]} 25. Kh2 {[%clk 0:01:03.5]} 25... Qe5+ {[%clk 0:01:28.1]} 26.
g3 {[%clk 0:00:40.9]} 26... Ra3 {[%clk 0:01:17.3]} 27. Rf2 {[%clk 0:00:33.3]}
27... Qxa1 {[%clk 0:01:16.1]} 28. f4 {[%clk 0:00:24.5]} 28... Rxa2 {[%clk
0:01:14.6]} 0-1

[Event "Early-Titled-Tuesday-Blitz-April-02-2024"]
[Site "Chess.com"]
[Date "2024.04.02"]
[Round "2"]
[White "Alen_Yeremyann"]
[Black "fmcabralis"]
[Result "1-0"]
[WhiteElo "2818"]
[BlackElo "2402"]
[TimeControl "180+1"]
[EndTime "8:16:18 PDT"]
[Termination "Alen_Yeremyann won by resignation"]

1. e4 {[%clk 0:02:57.7]} 1... c5 {[%clk 0:03:00.2]} 2. Nc3 {[%clk 0:02:57.3]}
2... Nc6 {[%clk 0:03:00.6]} 3. Bb5 {[%clk 0:02:56.4]} 3... Nd4 {[%clk
0:03:00.1]} 4. Bc4 {[%clk 0:02:56.7]} 4... e6 {[%clk 0:02:58.8]} 5. Nge2 {[%clk
0:02:57.2]} 5... Nf6 {[%clk 0:02:58.7]} 6. O-O {[%clk 0:02:54.9]} 6... d5 {[%clk
0:02:49.4]} 7. exd5 {[%clk 0:02:40.4]} 7... exd5 {[%clk 0:02:50.3]} 8. Nxd5
{[%clk 0:02:38.3]} 8... Nxd5 {[%clk 0:02:45.2]} 9. Nxd4 {[%clk 0:02:37.7]} 9...
cxd4 {[%clk 0:02:36.3]} 10. Qh5 {[%clk 0:02:37.6]} 10... Be6 {[%clk 0:02:31.8]}
11. Re1 {[%clk 0:02:38]} 11... Be7 {[%clk 0:01:38.2]} 12. Rxe6 {[%clk
0:02:11.7]} 12... O-O {[%clk 0:01:10.4]} 13. Re1 {[%clk 0:01:58.2]} 13... Nf6
{[%clk 0:01:01.7]} 14. Qf3 {[%clk 0:01:57.5]} 14... d3 {[%clk 0:00:51.9]} 15.
Bxd3 {[%clk 0:01:55.5]} 15... Rc8 {[%clk 0:00:47.8]} 16. c3 {[%clk 0:01:55.6]}
16... Re8 {[%clk 0:00:45.6]} 17. Bf5 {[%clk 0:01:55.7]} 17... Bd6 {[%clk
0:00:29.7]} 18. Rf1 {[%clk 0:01:53.7]} 18... Rc4 {[%clk 0:00:18.4]} 19. d4
{[%clk 0:01:53.7]} 19... Qe7 {[%clk 0:00:10.7]} 20. Bd3 {[%clk 0:01:53.8]} 20...
Rc7 {[%clk 0:00:09.4]} 21. Bg5 {[%clk 0:01:54.3]} 21... h6 {[%clk 0:00:07.1]}
22. Bd2 {[%clk 0:01:54.7]} 22... Qd7 {[%clk 0:00:05.8]} 23. h3 {[%clk
0:01:54.5]} 23... Rcc8 {[%clk 0:00:06]} 24. Rae1 {[%clk 0:01:53.8]} 24... Rxe1
{[%clk 0:00:05.2]} 25. Rxe1 {[%clk 0:01:54.7]} 25... Re8 {[%clk 0:00:05.9]} 26.
Rxe8+ {[%clk 0:01:54.3]} 26... Nxe8 {[%clk 0:00:06.8]} 27. Qf5 {[%clk
0:01:53.2]} 27... Qxf5 {[%clk 0:00:06.5]} 28. Bxf5 {[%clk 0:01:54.1]} 28... Kf8
{[%clk 0:00:06.9]} 29. Be4 {[%clk 0:01:54.4]} 29... b6 {[%clk 0:00:06.8]} 30. a4
{[%clk 0:01:54.5]} 30... Ke7 {[%clk 0:00:07.3]} 31. Bc6 {[%clk 0:01:54.4]} 31...
Nc7 {[%clk 0:00:07.2]} 32. b4 {[%clk 0:01:55]} 32... a5 {[%clk 0:00:07]} 33.
bxa5 {[%clk 0:01:51.6]} 33... bxa5 {[%clk 0:00:07.9]} 34. c4 {[%clk 0:01:52.1]}
34... Bb4 {[%clk 0:00:07.5]} 35. Be3 {[%clk 0:01:52.7]} 35... Ne6 {[%clk
0:00:06.8]} 36. c5 {[%clk 0:01:52]} 36... f5 {[%clk 0:00:05.6]} 37. f4 {[%clk
0:01:49.4]} 37... g6 {[%clk 0:00:03.3]} 38. g3 {[%clk 0:01:50]} 38... Kd8 {[%clk
0:00:03.6]} 39. Kf2 {[%clk 0:01:50.2]} 39... Kc7 {[%clk 0:00:04.1]} 40. Be8
{[%clk 0:01:50.7]} 40... Bc3 {[%clk 0:00:03.6]} 41. d5 {[%clk 0:01:50]} 41...
Nd4 {[%clk 0:00:03.6]} 42. Bxg6 {[%clk 0:01:50.1]} 42... Nc2 {[%clk 0:00:03.1]}
43. Bxf5 {[%clk 0:01:49.4]} 1-0

[Event "Early-Titled-Tuesday-Blitz-April-02-2024"]
[Site "Chess.com"]
[Date "2024.04.02"]
[Round "2"]
[White "Suleyman_Chess06"]
[Black "sathvikadiga"]
[Result "1-0"]
[WhiteElo "2741"]
[BlackElo "2556"]
[TimeControl "180+1"]
[EndTime "8:16:25 PDT"]
[Termination "Suleyman_Chess06 won on time"]

1. Nf3 {[%clk 0:03:00.9]} 1... Nf6 {[%clk 0:02:59.9]} 2. g3 {[%clk 0:03:01.3]}
2... g6 {[%clk 0:03:00.5]} 3. Bg2 {[%clk 0:03:01.3]} 3... Bg7 {[%clk 0:03:01.2]}
4. O-O {[%clk 0:03:02.2]} 4... Kf8 {[%clk 0:03:01.7]} 5. d4 {[%clk 0:03:03.1]}
5... d6 {[%clk 0:03:01.1]} 6. c4 {[%clk 0:03:02.9]} 6... Kg8 {[%clk 0:03:01.1]}
7. Nc3 {[%clk 0:03:02.9]} 7... h6 {[%clk 0:03:01.5]} 8. e4 {[%clk 0:03:01.7]}
8... Kh7 {[%clk 0:02:59.5]} 9. e5 {[%clk 0:02:58.8]} 9... dxe5 {[%clk
0:02:54.8]} 10. Nxe5 {[%clk 0:02:59.7]} 10... Qe8 {[%clk 0:02:46.3]} 11. Qb3
{[%clk 0:02:56.5]} 11... c6 {[%clk 0:02:40.6]} 12. d5 {[%clk 0:02:55.6]} 12...
Nxd5 {[%clk 0:02:24.2]} 13. cxd5 {[%clk 0:02:49.2]} 13... Bxe5 {[%clk
0:02:22.4]} 14. Re1 {[%clk 0:02:49.4]} 14... Bd6 {[%clk 0:02:06.6]} 15. Ne4
{[%clk 0:02:45.2]} 15... Qf8 {[%clk 0:01:53.9]} 16. Nxd6 {[%clk 0:02:40.9]}
16... exd6 {[%clk 0:01:54.1]} 17. Bf4 {[%clk 0:02:37.6]} 17... h5 {[%clk
0:01:01.6]} 18. dxc6 {[%clk 0:02:33.4]} 18... Nxc6 {[%clk 0:01:02.5]} 19. Rad1
{[%clk 0:02:33.4]} 19... Ne5 {[%clk 0:00:37.2]} 20. Bxe5 {[%clk 0:02:27.1]}
20... dxe5 {[%clk 0:00:38.1]} 21. Rxe5 {[%clk 0:02:27.7]} 21... Bg4 {[%clk
0:00:30]} 22. Rde1 {[%clk 0:02:24.3]} 22... Qg7 {[%clk 0:00:20.3]} 23. Re7
{[%clk 0:02:21.5]} 23... Rhf8 {[%clk 0:00:20.4]} 24. h3 {[%clk 0:02:12.7]} 24...
Bf5 {[%clk 0:00:17.4]} 25. Bxb7 {[%clk 0:02:10.4]} 25... Rad8 {[%clk 0:00:15.3]}
26. Bd5 {[%clk 0:01:50.8]} 26... Kg8 {[%clk 0:00:13.6]} 27. Rxa7 {[%clk
0:01:43.8]} 27... Qd4 {[%clk 0:00:07.2]} 28. Bxf7+ {[%clk 0:01:38.3]} 28... Kg7
{[%clk 0:00:07.3]} 29. Rae7 {[%clk 0:01:35.6]} 29... Qf6 {[%clk 0:00:03.5]} 30.
Bd5+ {[%clk 0:01:33.5]} 30... Kh8 {[%clk 0:00:03.1]} 31. Qe3 {[%clk 0:01:31.9]}
31... g5 {[%clk 0:00:01.5]} 32. Bg2 {[%clk 0:01:30.4]} 1-0